[Event "*** Titled Tuesday Blitz"]
[Site "Chess.com"]
[Date "2020.04.14"]
[Round "4"]
[White "Onwgs"]
[Black "Ariadna_Atreides"]
[Result "1-0"]
[WhiteElo "2383"]
[BlackElo "2015"]
[TimeControl "180+1"]
[EndTime "10:39:01 PDT"]
[Termination "Onwgs won on time"]

1. e4 {[%clk 0:03:00.4]} 1... c5 {[%clk 0:02:59.7]} 2. c3 {[%clk 0:02:59.9]}
2... d5 {[%clk 0:02:57.4]} 3. exd5 {[%clk 0:02:59.5]} 3... Qxd5 {[%clk
0:02:57.9]} 4. d4 {[%clk 0:03:00.2]} 4... Nf6 {[%clk 0:02:55.5]} 5. Nf3 {[%clk
0:03:00.8]} 5... Nc6 {[%clk 0:02:50.2]} 6. Be3 {[%clk 0:02:59.9]} 6... Bg4
{[%clk 0:02:41.6]} 7. dxc5 {[%clk 0:02:58.8]} 7... Qxd1+ {[%clk 0:02:40.8]} 8.
Kxd1 {[%clk 0:02:59.7]} 8... e5 {[%clk 0:02:40.2]} 9. Nd2 {[%clk 0:02:57.9]}
9... O-O-O {[%clk 0:02:36.4]} 10. h3 {[%clk 0:02:55.4]} 10... Bxf3+ {[%clk
0:02:33.6]} 11. gxf3 {[%clk 0:02:55.1]} 11... Nd5 {[%clk 0:02:31.5]} 12. Bc4
{[%clk 0:02:55.2]} 12... Nxe3+ {[%clk 0:02:29.4]} 13. fxe3 {[%clk 0:02:56.1]}
13... Bxc5 {[%clk 0:02:29.1]} 14. Ke2 {[%clk 0:02:56.8]} 14... f6 {[%clk
0:02:09.7]} 15. Rad1 {[%clk 0:02:55.9]} 15... a6 {[%clk 0:02:06.6]} 16. Ne4
{[%clk 0:02:55.9]} 16... Be7 {[%clk 0:02:05.7]} 17. Rhg1 {[%clk 0:02:54.5]}
17... Rxd1 {[%clk 0:01:59.9]} 18. Kxd1 {[%clk 0:02:51]} 18... Rd8+ {[%clk
0:01:54.1]} 19. Ke2 {[%clk 0:02:50.7]} 19... g6 {[%clk 0:01:46.4]} 20. h4 {[%clk
0:02:47.6]} 20... b5 {[%clk 0:01:34.9]} 21. Be6+ {[%clk 0:02:42.7]} 21... Kc7
{[%clk 0:01:33.4]} 22. h5 {[%clk 0:02:39.5]} 22... g5 {[%clk 0:01:29.4]} 23. Ng3
{[%clk 0:02:37.7]} 23... Bf8 {[%clk 0:01:06.4]} 24. Nf5 {[%clk 0:02:32.8]} 24...
Ne7 {[%clk 0:01:02.3]} 25. Ng3 {[%clk 0:02:27.3]} 25... Nc6 {[%clk 0:01:01.6]}
26. Bf5 {[%clk 0:02:21.7]} 26... h6 {[%clk 0:00:59]} 27. Be4 {[%clk 0:02:17.8]}
27... Ne7 {[%clk 0:00:38.6]} 28. Ra1 {[%clk 0:02:11.6]} 28... Rb8 {[%clk
0:00:28.7]} 29. Rd1 {[%clk 0:02:10.8]} 29... Bg7 {[%clk 0:00:24.1]} 30. Bf5
{[%clk 0:02:07.2]} 30... Nxf5 {[%clk 0:00:20.2]} 31. Nxf5 {[%clk 0:02:07.3]}
31... Bf8 {[%clk 0:00:19.8]} 32. Rd3 {[%clk 0:02:05]} 32... Kc6 {[%clk
0:00:17.1]} 33. Ng3 {[%clk 0:01:59.5]} 33... Kc7 {[%clk 0:00:15.1]} 34. Kd2
{[%clk 0:01:58.2]} 34... Rd8 {[%clk 0:00:13.8]} 35. Rxd8 {[%clk 0:01:58]} 35...
Kxd8 {[%clk 0:00:13.8]} 36. Kd3 {[%clk 0:01:58.7]} 36... Kd7 {[%clk 0:00:12.4]}
37. Ke4 {[%clk 0:01:58.2]} 37... Ke6 {[%clk 0:00:12.3]} 38. Nf5 {[%clk
0:01:58.5]} 38... a5 {[%clk 0:00:11.4]} 39. b3 {[%clk 0:01:58.5]} 39... a4
{[%clk 0:00:09]} 40. bxa4 {[%clk 0:01:54.7]} 40... bxa4 {[%clk 0:00:08.8]} 41.
c4 {[%clk 0:01:55.4]} 41... a3 {[%clk 0:00:08.4]} 42. Ng3 {[%clk 0:01:54.8]}
42... Bc5 {[%clk 0:00:07]} 43. Nf5 {[%clk 0:01:52.8]} 43... Bf8 {[%clk
0:00:06.8]} 44. c5 {[%clk 0:01:53.5]} 44... Bxc5 {[%clk 0:00:06.2]} 45. Nxh6
{[%clk 0:01:54.1]} 45... Bf8 {[%clk 0:00:03.4]} 46. Nf5 {[%clk 0:01:54.3]} 46...
Kf7 {[%clk 0:00:02.4]} 47. Kd5 {[%clk 0:01:53.6]} 1-0

[Event "*** Titled Tuesday Blitz"]
[Site "Chess.com"]
[Date "2020.04.14"]
[Round "4"]
[White "Chess2019Player"]
[Black "Jeffinho023"]
[Result "0-1"]
[WhiteElo "2194"]
[BlackElo "2414"]
[TimeControl "180+1"]
[EndTime "10:39:03 PDT"]
[Termination "Jeffinho023 won by resignation"]

1. e4 {[%clk 0:03:00.9]} 1... c6 {[%clk 0:02:59.5]} 2. Nc3 {[%clk 0:02:59.1]}
2... d5 {[%clk 0:03:00.4]} 3. Nf3 {[%clk 0:02:59.3]} 3... Bg4 {[%clk 0:02:58.9]}
4. h3 {[%clk 0:02:58.3]} 4... Bxf3 {[%clk 0:02:56.8]} 5. Qxf3 {[%clk 0:02:59.2]}
5... e6 {[%clk 0:02:57.1]} 6. Be2 {[%clk 0:02:53.9]} 6... Nd7 {[%clk 0:02:56]}
7. O-O {[%clk 0:02:50.3]} 7... Ngf6 {[%clk 0:02:55.6]} 8. exd5 {[%clk
0:02:39.5]} 8... cxd5 {[%clk 0:02:53.9]} 9. d4 {[%clk 0:02:37.3]} 9... Bd6
{[%clk 0:02:53.2]} 10. Bd3 {[%clk 0:02:32.3]} 10... O-O {[%clk 0:02:51.6]} 11.
Ne2 {[%clk 0:02:31]} 11... Rc8 {[%clk 0:02:50.5]} 12. c3 {[%clk 0:02:29.8]}
12... a6 {[%clk 0:02:44.1]} 13. Bg5 {[%clk 0:02:05.3]} 13... h6 {[%clk
0:02:30.5]} 14. Bf4 {[%clk 0:02:01.8]} 14... Bxf4 {[%clk 0:02:29.3]} 15. Nxf4
{[%clk 0:02:02.7]} 15... b5 {[%clk 0:02:29.2]} 16. Rfe1 {[%clk 0:01:52.7]} 16...
Qb6 {[%clk 0:02:27.7]} 17. a3 {[%clk 0:01:39.4]} 17... a5 {[%clk 0:02:26.8]} 18.
Re3 {[%clk 0:01:17.6]} 18... b4 {[%clk 0:02:26.5]} 19. axb4 {[%clk 0:01:17.5]}
19... axb4 {[%clk 0:02:26.5]} 20. Nh5 {[%clk 0:01:16.3]} 20... Nxh5 {[%clk
0:02:25.8]} 21. Qxh5 {[%clk 0:01:17.2]} 21... Nf6 {[%clk 0:02:25.9]} 22. Qh4
{[%clk 0:01:17.6]} 22... bxc3 {[%clk 0:02:25.6]} 23. bxc3 {[%clk 0:01:17.2]}
23... Qb2 {[%clk 0:02:19.7]} 24. Rb1 {[%clk 0:01:14]} 24... Qd2 {[%clk 0:02:18]}
25. Rg3 {[%clk 0:00:49.2]} 25... Kh8 {[%clk 0:02:01.2]} 26. Rf3 {[%clk 0:00:33]}
26... Rxc3 {[%clk 0:01:50.5]} 27. Rxf6 {[%clk 0:00:16.6]} 27... Rxd3 {[%clk
0:01:47.2]} 28. Rf4 {[%clk 0:00:07.7]} 28... Kg8 {[%clk 0:01:30.1]} 29. Rb7
{[%clk 0:00:06.5]} 29... Qc1+ {[%clk 0:01:18]} 30. Kh2 {[%clk 0:00:06.1]} 30...
Rd1 {[%clk 0:01:18.1]} 31. Rg4 {[%clk 0:00:01.6]} 31... Rh1+ {[%clk 0:01:14.4]}
32. Kg3 {[%clk 0:00:02]} 32... Qc3+ {[%clk 0:01:13.1]} 33. f3 {[%clk 0:00:01.9]}
33... Qe1+ {[%clk 0:01:08.1]} 34. Kf4 {[%clk 0:00:02.2]} 34... Qxh4 {[%clk
0:01:08.3]} 35. Rxh4 {[%clk 0:00:03.1]} 35... g5+ {[%clk 0:01:06.2]} 36. Kg4
{[%clk 0:00:02.9]} 36... gxh4 {[%clk 0:01:07.1]} 37. Kh5 {[%clk 0:00:03.4]}
37... Kg7 {[%clk 0:01:06]} 0-1

[Event "*** Titled Tuesday Blitz"]
[Site "Chess.com"]
[Date "2020.04.14"]
[Round "4"]
[White "Spriteball"]
[Black "hazy13"]
[Result "0-1"]
[WhiteElo "1896"]
[BlackElo "2203"]
[TimeControl "180+1"]
[EndTime "10:39:03 PDT"]
[Termination "hazy13 won by resignation"]

1. d4 {[%clk 0:03:00.9]} 1... Nf6 {[%clk 0:02:55]} 2. c4 {[%clk 0:03:00.8]} 2...
c6 {[%clk 0:02:51.9]} 3. Nc3 {[%clk 0:02:55.6]} 3... d5 {[%clk 0:02:51.3]} 4.
Nf3 {[%clk 0:02:55.9]} 4... e6 {[%clk 0:02:49.6]} 5. g3 {[%clk 0:02:55.5]} 5...
dxc4 {[%clk 0:02:43.7]} 6. Bg2 {[%clk 0:02:53.8]} 6... Be7 {[%clk 0:02:39.2]} 7.
O-O {[%clk 0:02:49.8]} 7... O-O {[%clk 0:02:38.3]} 8. e4 {[%clk 0:02:50]} 8...
b5 {[%clk 0:02:37.3]} 9. Re1 {[%clk 0:01:58.2]} 9... Bb7 {[%clk 0:02:34]} 10. b3
{[%clk 0:01:53.3]} 10... b4 {[%clk 0:02:29.6]} 11. Na4 {[%clk 0:01:53.4]} 11...
c3 {[%clk 0:02:24.9]} 12. Qc2 {[%clk 0:01:51.6]} 12... Nbd7 {[%clk 0:02:15.9]}
13. Be3 {[%clk 0:01:46.3]} 13... Qa5 {[%clk 0:02:00.1]} 14. Rad1 {[%clk
0:01:44]} 14... c5 {[%clk 0:01:58.2]} 15. e5 {[%clk 0:01:19.4]} 15... Be4 {[%clk
0:01:42.8]} 16. Qc1 {[%clk 0:01:12.3]} 16... Ng4 {[%clk 0:01:21.5]} 17. dxc5
{[%clk 0:01:07.8]} 17... Bxf3 {[%clk 0:01:02.9]} 18. Bxf3 {[%clk 0:01:06.6]}
18... Ndxe5 {[%clk 0:01:01.8]} 19. Bxa8 {[%clk 0:01:00.8]} 19... Rxa8 {[%clk
0:00:59.4]} 20. Kg2 {[%clk 0:00:57]} 20... Qb5 {[%clk 0:00:50.8]} 21. f3 {[%clk
0:00:44.6]} 21... Qc6 {[%clk 0:00:30.7]} 22. Rf1 {[%clk 0:00:44.4]} 22... Rd8
{[%clk 0:00:18.4]} 23. Rxd8+ {[%clk 0:00:41.6]} 23... Bxd8 {[%clk 0:00:19.3]}
24. Bf4 {[%clk 0:00:32.3]} 24... Bf6 {[%clk 0:00:15.7]} 25. h3 {[%clk
0:00:23.2]} 25... Nd3 {[%clk 0:00:14.1]} 26. Qd1 {[%clk 0:00:16.6]} 26... Nxf4+
{[%clk 0:00:12.9]} 0-1

[Event "*** Titled Tuesday Blitz"]
[Site "Chess.com"]
[Date "2020.04.14"]
[Round "4"]
[White "iulik86"]
[Black "Jagerrmeisterr"]
[Result "1/2-1/2"]
[WhiteElo "2522"]
[BlackElo "2682"]
[TimeControl "180+1"]
[EndTime "10:39:05 PDT"]
[Termination "Game drawn by repetition"]

1. d4 {[%clk 0:03:00.9]} 1... f5 {[%clk 0:02:59.8]} 2. g3 {[%clk 0:02:59.8]}
2... Nf6 {[%clk 0:03:00]} 3. Bg2 {[%clk 0:03:00.4]} 3... e6 {[%clk 0:03:00.9]}
4. Nf3 {[%clk 0:03:01]} 4... d5 {[%clk 0:03:01.8]} 5. c4 {[%clk 0:03:00.2]} 5...
Bd6 {[%clk 0:03:01.9]} 6. b3 {[%clk 0:02:58.6]} 6... c6 {[%clk 0:03:01.2]} 7.
O-O {[%clk 0:02:58.7]} 7... Qe7 {[%clk 0:03:01.6]} 8. Bb2 {[%clk 0:02:58.7]}
8... b6 {[%clk 0:02:59.7]} 9. Qc1 {[%clk 0:02:59.1]} 9... Bb7 {[%clk 0:02:59.6]}
10. Ba3 {[%clk 0:02:59.6]} 10... a5 {[%clk 0:02:59.8]} 11. Bxd6 {[%clk
0:02:57.9]} 11... Qxd6 {[%clk 0:03:00.1]} 12. Qa3 {[%clk 0:02:58.8]} 12... Qxa3
{[%clk 0:03:00]} 13. Nxa3 {[%clk 0:02:59]} 13... Nbd7 {[%clk 0:02:56.7]} 14.
Rfc1 {[%clk 0:02:57]} 14... Ne4 {[%clk 0:02:56.9]} 15. Ne1 {[%clk 0:02:52.2]}
15... Ke7 {[%clk 0:02:44.9]} 16. Nd3 {[%clk 0:02:45.4]} 16... Rhc8 {[%clk
0:02:44.4]} 17. Rc2 {[%clk 0:02:41.4]} 17... a4 {[%clk 0:02:35.4]} 18. b4 {[%clk
0:02:37.5]} 18... c5 {[%clk 0:02:35.2]} 19. bxc5 {[%clk 0:02:34.6]} 19... bxc5
{[%clk 0:02:35.4]} 20. Nxc5 {[%clk 0:02:21.8]} 20... Ndxc5 {[%clk 0:02:29.5]}
21. dxc5 {[%clk 0:02:22.7]} 21... Rxc5 {[%clk 0:02:29.8]} 22. Rb1 {[%clk
0:02:11.2]} 22... Bc6 {[%clk 0:02:06.6]} 23. cxd5 {[%clk 0:02:05.3]} 23... Rxc2
{[%clk 0:02:02.9]} 24. Nxc2 {[%clk 0:02:06.2]} 24... Bxd5 {[%clk 0:02:03.1]} 25.
Nb4 {[%clk 0:01:52.1]} 25... Rc8 {[%clk 0:02:00.1]} 26. Nxd5+ {[%clk 0:01:38.9]}
26... exd5 {[%clk 0:02:00.1]} 27. Bxe4 {[%clk 0:01:34.3]} 27... fxe4 {[%clk
0:01:59.3]} 28. Rb7+ {[%clk 0:01:33.9]} 28... Kf6 {[%clk 0:01:59.1]} 29. Ra7
{[%clk 0:01:29]} 29... Rc2 {[%clk 0:01:49.5]} 30. Rxa4 {[%clk 0:01:22.3]} 30...
Rxe2 {[%clk 0:01:49.6]} 31. Ra6+ {[%clk 0:01:09.9]} 31... Ke5 {[%clk 0:01:49.5]}
32. a4 {[%clk 0:01:09.6]} 32... Ra2 {[%clk 0:01:49]} 33. Ra7 {[%clk 0:01:08.7]}
33... d4 {[%clk 0:01:47.7]} 34. Re7+ {[%clk 0:00:56.5]} 34... Kf5 {[%clk
0:01:45]} 35. Rxg7 {[%clk 0:00:36.7]} 35... d3 {[%clk 0:01:40.5]} 36. Rd7 {[%clk
0:00:31]} 36... e3 {[%clk 0:01:27.8]} 37. fxe3 {[%clk 0:00:18.7]} 37... Ke4
{[%clk 0:01:27.9]} 38. Re7+ {[%clk 0:00:13.6]} 38... Kf3 {[%clk 0:01:25.6]} 39.
Rf7+ {[%clk 0:00:13.4]} 39... Ke4 {[%clk 0:01:10.6]} 40. Re7+ {[%clk 0:00:13.4]}
40... Kf5 {[%clk 0:01:08.2]} 41. Rd7 {[%clk 0:00:12.2]} 41... Ke4 {[%clk
0:00:58.9]} 42. Re7+ {[%clk 0:00:12.2]} 1/2-1/2

[Event "*** Titled Tuesday Blitz"]
[Site "Chess.com"]
[Date "2020.04.14"]
[Round "4"]
[White "DrVelja"]
[Black "renehp"]
[Result "1-0"]
[WhiteElo "2633"]
[BlackElo "2421"]
[TimeControl "180+1"]
[EndTime "10:39:07 PDT"]
[Termination "DrVelja won by resignation"]

1. e4 {[%clk 0:03:00.9]} 1... c5 {[%clk 0:02:59.5]} 2. Nf3 {[%clk 0:03:01.4]}
2... d6 {[%clk 0:02:58.4]} 3. d4 {[%clk 0:03:02]} 3... cxd4 {[%clk 0:02:58.8]}
4. Nxd4 {[%clk 0:03:02.9]} 4... Nf6 {[%clk 0:02:59.1]} 5. Nc3 {[%clk 0:03:03.8]}
5... a6 {[%clk 0:02:58.8]} 6. Be2 {[%clk 0:03:01.6]} 6... e5 {[%clk 0:02:58.5]}
7. Nf3 {[%clk 0:03:02.1]} 7... Be7 {[%clk 0:02:58.3]} 8. Bg5 {[%clk 0:03:01.4]}
8... Be6 {[%clk 0:02:56.4]} 9. Bxf6 {[%clk 0:03:00.1]} 9... Bxf6 {[%clk
0:02:56.4]} 10. O-O {[%clk 0:02:51.3]} 10... O-O {[%clk 0:02:56.3]} 11. Nd5
{[%clk 0:02:51.8]} 11... Bxd5 {[%clk 0:02:56.1]} 12. Qxd5 {[%clk 0:02:51.3]}
12... Nc6 {[%clk 0:02:56]} 13. c3 {[%clk 0:02:49.2]} 13... Ne7 {[%clk
0:02:49.7]} 14. Qxb7 {[%clk 0:02:40.6]} 14... Rb8 {[%clk 0:02:49.8]} 15. Qxa6
{[%clk 0:02:40.6]} 15... Rxb2 {[%clk 0:02:50.7]} 16. Rfd1 {[%clk 0:02:36.9]}
16... Qc7 {[%clk 0:02:42.9]} 17. Rab1 {[%clk 0:02:20.7]} 17... Rxb1 {[%clk
0:02:39.1]} 18. Rxb1 {[%clk 0:02:21.6]} 18... Qxc3 {[%clk 0:02:39.3]} 19. Qxd6
{[%clk 0:02:18.4]} 19... Qc2 {[%clk 0:02:37.6]} 20. Rb8 {[%clk 0:02:08.6]} 20...
Nc8 {[%clk 0:02:28.2]} 21. Qa6 {[%clk 0:02:00.4]} 21... h6 {[%clk 0:02:06.6]}
22. Qc4 {[%clk 0:01:28.7]} 22... Qxc4 {[%clk 0:01:56.5]} 23. Bxc4 {[%clk
0:01:29.6]} 23... Nd6 {[%clk 0:01:53.4]} 24. Rxf8+ {[%clk 0:01:29.9]} 24... Kxf8
{[%clk 0:01:54.3]} 25. Bd5 {[%clk 0:01:30.5]} 25... Nb5 {[%clk 0:01:46.8]} 26.
a4 {[%clk 0:01:29.9]} 26... Nd4 {[%clk 0:01:47]} 27. Nxd4 {[%clk 0:01:01.8]}
27... exd4 {[%clk 0:01:47.2]} 28. a5 {[%clk 0:00:58.6]} 28... Bd8 {[%clk
0:01:46.5]} 29. a6 {[%clk 0:00:58.3]} 29... Bb6 {[%clk 0:01:47]} 30. Kf1 {[%clk
0:00:57.6]} 30... Ke7 {[%clk 0:01:44.8]} 31. f4 {[%clk 0:00:52.1]} 31... f6
{[%clk 0:01:44.7]} 32. Ke2 {[%clk 0:00:51.7]} 32... Kd6 {[%clk 0:01:44.4]} 33.
Kd3 {[%clk 0:00:51.7]} 33... f5 {[%clk 0:01:41.5]} 34. Bc4 {[%clk 0:00:39.2]}
34... fxe4+ {[%clk 0:01:40.6]} 35. Kxe4 {[%clk 0:00:39.6]} 35... Kc5 {[%clk
0:01:37]} 36. Bd3 {[%clk 0:00:38.1]} 36... Kb4 {[%clk 0:01:33.3]} 37. f5 {[%clk
0:00:35.8]} 37... Kc3 {[%clk 0:01:32.4]} 38. g4 {[%clk 0:00:34.8]} 38... Kb4
{[%clk 0:01:27.4]} 39. h4 {[%clk 0:00:31.2]} 39... Kc5 {[%clk 0:01:27.9]} 40.
Ke5 {[%clk 0:00:28.6]} 40... Bc7+ {[%clk 0:01:20.9]} 41. Ke6 {[%clk 0:00:26]}
41... Kb6 {[%clk 0:01:20.4]} 42. g5 {[%clk 0:00:25]} 42... hxg5 {[%clk
0:01:20.2]} 43. hxg5 {[%clk 0:00:25.9]} 43... Bd8 {[%clk 0:01:17.8]} 44. f6
{[%clk 0:00:26]} 44... gxf6 {[%clk 0:01:17.2]} 45. g6 {[%clk 0:00:26]} 1-0

[Event "*** Titled Tuesday Blitz"]
[Site "Chess.com"]
[Date "2020.04.14"]
[Round "4"]
[White "jk13"]
[Black "pichonazo"]
[Result "0-1"]
[WhiteElo "2779"]
[BlackElo "2609"]
[TimeControl "180+1"]
[EndTime "10:39:07 PDT"]
[Termination "pichonazo won by resignation"]

1. e4 {[%clk 0:03:00.9]} 1... Nc6 {[%clk 0:02:59.6]} 2. Nf3 {[%clk 0:03:00.8]}
2... d6 {[%clk 0:02:59.3]} 3. d4 {[%clk 0:03:00.3]} 3... Nf6 {[%clk 0:02:59.4]}
4. Nc3 {[%clk 0:03:00.9]} 4... Bg4 {[%clk 0:02:58.2]} 5. Be2 {[%clk 0:03:01.6]}
5... e6 {[%clk 0:02:57.5]} 6. Be3 {[%clk 0:03:00.3]} 6... d5 {[%clk 0:02:56.5]}
7. Ng5 {[%clk 0:02:53.3]} 7... Bxe2 {[%clk 0:02:53.6]} 8. Qxe2 {[%clk
0:02:54.2]} 8... dxe4 {[%clk 0:02:41]} 9. O-O-O {[%clk 0:02:53.3]} 9... Be7
{[%clk 0:02:38]} 10. Qb5 {[%clk 0:02:45.3]} 10... Qc8 {[%clk 0:02:26.4]} 11.
Ngxe4 {[%clk 0:02:37.8]} 11... a6 {[%clk 0:02:15]} 12. Qe2 {[%clk 0:02:30.3]}
12... O-O {[%clk 0:02:08.2]} 13. d5 {[%clk 0:02:29]} 13... Nxd5 {[%clk
0:02:03.7]} 14. Nxd5 {[%clk 0:02:27]} 14... exd5 {[%clk 0:02:04.1]} 15. Rxd5
{[%clk 0:02:27.9]} 15... Qe6 {[%clk 0:02:01.6]} 16. Nc3 {[%clk 0:02:22.7]} 16...
Nb4 {[%clk 0:01:50.6]} 17. Rhd1 {[%clk 0:02:02]} 17... Nxd5 {[%clk 0:01:44]} 18.
Nxd5 {[%clk 0:02:02.9]} 18... Bd6 {[%clk 0:01:44.1]} 19. a3 {[%clk 0:01:46]}
19... Rad8 {[%clk 0:01:41.3]} 20. Qf3 {[%clk 0:01:39.6]} 20... c6 {[%clk
0:01:37.3]} 21. Nc3 {[%clk 0:01:37.4]} 21... Be5 {[%clk 0:01:32.7]} 22. Bd2
{[%clk 0:01:34.1]} 22... Rfe8 {[%clk 0:01:24.1]} 23. b3 {[%clk 0:01:04.5]} 23...
Qf6 {[%clk 0:01:15.8]} 24. Qxf6 {[%clk 0:00:55]} 24... Bxf6 {[%clk 0:01:14.2]}
25. Re1 {[%clk 0:00:34.8]} 25... Rxe1+ {[%clk 0:01:06.3]} 26. Bxe1 {[%clk
0:00:35.7]} 26... Bxc3 {[%clk 0:01:05.3]} 27. Bxc3 {[%clk 0:00:35.8]} 27... f6
{[%clk 0:01:04.3]} 28. f3 {[%clk 0:00:35.5]} 28... Kf7 {[%clk 0:01:04]} 29. a4
{[%clk 0:00:36.4]} 29... b5 {[%clk 0:00:59.9]} 30. axb5 {[%clk 0:00:34.9]} 30...
cxb5 {[%clk 0:00:58.1]} 31. Ba5 {[%clk 0:00:34.5]} 31... Rd7 {[%clk 0:00:57.1]}
32. c3 {[%clk 0:00:33]} 32... Ke6 {[%clk 0:00:56.1]} 33. Kc2 {[%clk 0:00:33.5]}
33... Kf5 {[%clk 0:00:52.5]} 34. c4 {[%clk 0:00:31.9]} 34... bxc4 {[%clk
0:00:49]} 35. bxc4 {[%clk 0:00:32.8]} 35... Ke5 {[%clk 0:00:46.3]} 36. Bb6
{[%clk 0:00:28.8]} 36... Kd6 {[%clk 0:00:44.9]} 37. Kc3 {[%clk 0:00:28.4]} 37...
Kc6 {[%clk 0:00:45.2]} 38. Be3 {[%clk 0:00:25.4]} 38... a5 {[%clk 0:00:43.2]}
39. Kb3 {[%clk 0:00:26]} 39... Rb7+ {[%clk 0:00:42.2]} 40. Kc3 {[%clk 0:00:24]}
40... a4 {[%clk 0:00:41.5]} 41. Bc1 {[%clk 0:00:24]} 41... Rb3+ {[%clk 0:00:40]}
42. Kc2 {[%clk 0:00:24.6]} 42... Kc5 {[%clk 0:00:39.2]} 0-1

[Event "*** Titled Tuesday Blitz"]
[Site "Chess.com"]
[Date "2020.04.14"]
[Round "4"]
[White "Sven_Tica"]
[Black "Vamostodorecto"]
[Result "1-0"]
[WhiteElo "2669"]
[BlackElo "2501"]
[TimeControl "180+1"]
[EndTime "10:39:08 PDT"]
[Termination "Sven_Tica won on time"]

1. d4 {[%clk 0:03:00.9]} 1... d5 {[%clk 0:02:58.8]} 2. c4 {[%clk 0:02:59.9]}
2... c6 {[%clk 0:02:57.2]} 3. Nf3 {[%clk 0:03:00]} 3... Nf6 {[%clk 0:02:56.5]}
4. Qc2 {[%clk 0:03:00.7]} 4... g6 {[%clk 0:02:55.1]} 5. e3 {[%clk 0:03:00.2]}
5... Bg7 {[%clk 0:02:54.9]} 6. Bd3 {[%clk 0:03:00.8]} 6... O-O {[%clk
0:02:54.9]} 7. O-O {[%clk 0:03:01.4]} 7... dxc4 {[%clk 0:02:54.1]} 8. Bxc4
{[%clk 0:02:57]} 8... Bg4 {[%clk 0:02:54.7]} 9. Nbd2 {[%clk 0:02:55.8]} 9...
Nbd7 {[%clk 0:02:53.1]} 10. b3 {[%clk 0:02:55.5]} 10... Qc7 {[%clk 0:02:48]} 11.
Bb2 {[%clk 0:02:55]} 11... Rfe8 {[%clk 0:02:41.5]} 12. h3 {[%clk 0:02:42.3]}
12... Bxf3 {[%clk 0:02:28.5]} 13. Nxf3 {[%clk 0:02:43.2]} 13... Rad8 {[%clk
0:02:21.8]} 14. Rac1 {[%clk 0:02:41.8]} 14... Qd6 {[%clk 0:02:11]} 15. e4 {[%clk
0:02:34.9]} 15... Nh5 {[%clk 0:02:07.2]} 16. e5 {[%clk 0:02:31.2]} 16... Qc7
{[%clk 0:02:00.5]} 17. e6 {[%clk 0:02:19.2]} 17... fxe6 {[%clk 0:02:01.4]} 18.
Bxe6+ {[%clk 0:02:18.9]} 18... Kh8 {[%clk 0:02:01]} 19. Ng5 {[%clk 0:02:18]}
19... Rf8 {[%clk 0:01:43.4]} 20. d5 {[%clk 0:02:05.8]} 20... Ne5 {[%clk
0:01:36.3]} 21. dxc6 {[%clk 0:01:51.6]} 21... h6 {[%clk 0:01:26.7]} 22. Bxe5
{[%clk 0:01:42.2]} 22... Qxe5 {[%clk 0:01:15.4]} 23. Nf7+ {[%clk 0:01:42.3]}
23... Rxf7 {[%clk 0:01:13.2]} 24. Bxf7 {[%clk 0:01:43.2]} 24... bxc6 {[%clk
0:01:08.5]} 25. Qxg6 {[%clk 0:01:40.3]} 25... Nf4 {[%clk 0:01:08]} 26. Qxc6
{[%clk 0:01:36.2]} 26... Ne2+ {[%clk 0:00:49.3]} 27. Kh1 {[%clk 0:01:36.2]}
27... Nxc1 {[%clk 0:00:49.5]} 28. Rxc1 {[%clk 0:01:37.1]} 28... Qg5 {[%clk
0:00:48.1]} 29. Be6 {[%clk 0:01:26.4]} 29... Be5 {[%clk 0:00:43.5]} 30. Qc4
{[%clk 0:01:22.4]} 30... Rf8 {[%clk 0:00:33.4]} 31. Rf1 {[%clk 0:01:12.8]} 31...
Kg7 {[%clk 0:00:19.7]} 32. g3 {[%clk 0:01:05]} 32... Rf3 {[%clk 0:00:10.7]} 33.
Bd5 {[%clk 0:00:59.2]} 33... Rc3 {[%clk 0:00:06.5]} 34. Qe4 {[%clk 0:00:59]}
34... Qf6 {[%clk 0:00:03.4]} 35. Qg4+ {[%clk 0:00:55.5]} 35... Qg5 {[%clk
0:00:02.8]} 36. Qe6 {[%clk 0:00:55.6]} 1-0

[Event "*** Titled Tuesday Blitz"]
[Site "Chess.com"]
[Date "2020.04.14"]
[Round "4"]
[White "2L8IWUN"]
[Black "Tashik"]
[Result "1/2-1/2"]
[WhiteElo "2339"]
[BlackElo "2557"]
[TimeControl "180+1"]
[EndTime "10:39:08 PDT"]
[Termination "Game drawn by repetition"]

1. d4 {[%clk 0:03:00.9]} 1... Nf6 {[%clk 0:02:59.3]} 2. Nf3 {[%clk 0:02:56]}
2... d5 {[%clk 0:02:58.2]} 3. Bf4 {[%clk 0:02:55.4]} 3... e6 {[%clk 0:02:57.9]}
4. e3 {[%clk 0:02:53.8]} 4... Bd6 {[%clk 0:02:58.5]} 5. Bg3 {[%clk 0:02:54.5]}
5... O-O {[%clk 0:02:56.4]} 6. Nbd2 {[%clk 0:02:54.9]} 6... c5 {[%clk
0:02:56.8]} 7. c3 {[%clk 0:02:54.4]} 7... Qc7 {[%clk 0:02:57.2]} 8. Bd3 {[%clk
0:02:52.1]} 8... Nbd7 {[%clk 0:02:56.8]} 9. Bxd6 {[%clk 0:02:36.6]} 9... Qxd6
{[%clk 0:02:56.4]} 10. O-O {[%clk 0:02:35.2]} 10... e5 {[%clk 0:02:56.5]} 11.
dxe5 {[%clk 0:02:32]} 11... Nxe5 {[%clk 0:02:57.4]} 12. Nxe5 {[%clk 0:02:31.2]}
12... Qxe5 {[%clk 0:02:58.3]} 13. Re1 {[%clk 0:02:31]} 13... Bf5 {[%clk
0:02:43.9]} 14. Bxf5 {[%clk 0:02:24]} 14... Qxf5 {[%clk 0:02:44]} 15. Qf3 {[%clk
0:02:24.9]} 15... Qc2 {[%clk 0:02:30.8]} 16. Qe2 {[%clk 0:02:20.7]} 16... Qxb2
{[%clk 0:02:25.7]} 17. Ne4 {[%clk 0:02:18.3]} 17... Qxe2 {[%clk 0:02:10]} 18.
Nxf6+ {[%clk 0:02:18]} 18... gxf6 {[%clk 0:02:10.9]} 19. Rxe2 {[%clk 0:02:18.3]}
19... Rfd8 {[%clk 0:01:57.3]} 20. Rd2 {[%clk 0:02:18.5]} 20... Rd6 {[%clk
0:01:55.6]} 21. Rad1 {[%clk 0:02:18.7]} 21... Rad8 {[%clk 0:01:55.9]} 22. Kf1
{[%clk 0:02:11.1]} 22... Kf8 {[%clk 0:01:55.5]} 23. f4 {[%clk 0:02:07.3]} 23...
f5 {[%clk 0:01:50.6]} 24. Kf2 {[%clk 0:02:02.9]} 24... Ke7 {[%clk 0:01:50.5]}
25. Kf3 {[%clk 0:02:01.1]} 25... h5 {[%clk 0:01:45.6]} 26. g3 {[%clk 0:01:56.3]}
26... Ke6 {[%clk 0:01:44.9]} 27. a4 {[%clk 0:01:52.3]} 27... c4 {[%clk
0:01:31.2]} 28. Rb2 {[%clk 0:01:49.9]} 28... R8d7 {[%clk 0:01:17.1]} 29. Rb5
{[%clk 0:01:48]} 29... Ra6 {[%clk 0:00:59.7]} 30. a5 {[%clk 0:01:46.1]} 30... b6
{[%clk 0:00:59.9]} 31. Ra1 {[%clk 0:01:42]} 31... bxa5 {[%clk 0:00:43.2]} 32.
Rbxa5 {[%clk 0:01:39.8]} 32... Rxa5 {[%clk 0:00:42.1]} 33. Rxa5 {[%clk
0:01:40.7]} 33... Rb7 {[%clk 0:00:39.9]} 34. Ra6+ {[%clk 0:01:39.1]} 34... Ke7
{[%clk 0:00:30]} 35. Rh6 {[%clk 0:01:32.8]} 35... Rb3 {[%clk 0:00:28.4]} 36.
Rxh5 {[%clk 0:01:30.5]} 36... Rxc3 {[%clk 0:00:23.7]} 37. Rxf5 {[%clk
0:01:29.5]} 37... Rd3 {[%clk 0:00:20.6]} 38. Ke2 {[%clk 0:01:26.9]} 38... a5
{[%clk 0:00:19.4]} 39. Re5+ {[%clk 0:01:24.6]} 39... Kd6 {[%clk 0:00:19.6]} 40.
Re8 {[%clk 0:01:23.1]} 40... a4 {[%clk 0:00:19.6]} 41. Ra8 {[%clk 0:01:20.9]}
41... a3 {[%clk 0:00:19.8]} 42. Ra5 {[%clk 0:01:17.5]} 42... Rb3 {[%clk
0:00:19.2]} 43. Kd2 {[%clk 0:01:10]} 43... Rb2+ {[%clk 0:00:19.3]} 44. Kc3
{[%clk 0:01:09.1]} 44... Rb3+ {[%clk 0:00:18]} 45. Kd2 {[%clk 0:00:57.3]} 45...
Rd3+ {[%clk 0:00:16.7]} 46. Ke2 {[%clk 0:00:54.7]} 46... Rb3 {[%clk 0:00:17.6]}
47. Kd2 {[%clk 0:00:54.2]} 1/2-1/2